bitfinex/quotes_BTCUSD_20241022
["timestamp","ask_amount","ask_price","bid_price","bid_amount"]
[1729594313557,0.23688525,67159.0,67158.0,0.173851]
[1729594313792,0.23688525,67159.0,67158.0,0.178851]
[1729594314675,0.23688525,67159.0,67158.0,0.101251]
[1729594321141,0.23688525,67159.0,67158.0,0.096251]
[1729594321417,0.23688525,67159.0,67158.0,0.101251]
[1729594324754,0.28149951,67159.0,67158.0,0.101251]
[1729594325491,0.28153962,67159.0,67158.0,0.101251]
[1729594325712,0.23688525,67159.0,67158.0,0.101251]
[1729594325939,0.23688525,67159.0,67158.0,0.007551]
[1729594326396,0.39102606,67159.0,67158.0,0.007551]
[1729594326841,0.57819869,67159.0,67158.0,0.007551]
[1729594327061,0.3240445,67159.0,67158.0,0.007551]
[1729594327288,0.3910281,67159.0,67158.0,0.007551]
[1729594327508,0.3240445,67159.0,67158.0,0.007551]
[1729594327783,0.36869822,67159.0,67158.0,0.007551]
[1729594328003,0.2815387,67159.0,67158.0,0.007551]
[1729594328223,0.36869795,67159.0,67158.0,0.007551]
[1729594328445,0.2815387,67159.0,67158.0,0.007551]
[1729594328883,0.36869795,67159.0,67158.0,0.007551]
[1729594329142,0.2815387,67159.0,67158.0,0.007551]
[1729594329786,0.28154161,67159.0,67158.0,0.007551]
[1729594330046,0.3240445,67159.0,67158.0,0.007551]
[1729594330264,0.40173985,67159.0,67158.0,0.007551]
[1729594330510,0.5134014,67159.0,67158.0,0.007551]
[1729594330728,0.23688525,67159.0,67158.0,0.007551]
[1729594330948,0.30387534,67159.0,67158.0,0.007551]
[1729594331166,0.30387534,67159.0,67158.0,0.0073244]
[1729594331851,0.23688525,67159.0,67158.0,0.0023244]
[1729594333287,0.40177553,67159.0,67158.0,0.0023244]
[1729594334383,0.49109805,67159.0,67158.0,0.0023244]
[1729594335267,0.49113916,67159.0,67158.0,0.0023244]
[1729594337490,0.40179256,67159.0,67158.0,0.0023244]
[1729594338373,0.51347581,67159.0,67158.0,0.0020978]
[1729594343535,0.40179256,67159.0,67158.0,0.0020978]
[1729594345042,0.40179256,67159.0,67158.0,0.0018712]
[1729594347447,0.40179256,67159.0,67158.0,0.0035232]
[1729594347868,0.40179256,67159.0,67158.0,0.0025232]
[1729594348795,0.40179256,67159.0,67158.0,0.001652]
[1729594349292,0.40279256,67159.0,67158.0,0.001652]
[1729594350203,0.16673331,67159.0,67158.0,0.22614649]
[1729594350437,0.16673331,67159.0,67158.0,0.36498204]
[1729594350438,0.001826,67159.0,67158.0,0.36498204]
[1729594350656,0.001826,67159.0,67158.0,0.37182729]
[1729594351383,0.002826,67159.0,67158.0,0.38382729]
[1729594351826,0.001826,67159.0,67158.0,0.37182729]
[1729594352049,0.001826,67159.0,67158.0,0.37169029]
[1729594352276,0.002826,67159.0,67158.0,0.38269029]
[1729594352512,0.001826,67159.0,67158.0,0.38269029]
[1729594352742,0.002826,67159.0,67158.0,0.39069029]
[1729594352964,0.001826,67159.0,67158.0,0.38269029]
[1729594353200,0.001826,67159.0,67158.0,0.53159229]
[1729594353425,0.002826,67159.0,67158.0,0.53959229]
[1729594353698,0.002826,67159.0,67158.0,0.65878392]
[1729594353949,0.002826,67159.0,67158.0,0.54459229]
[1729594354400,0.002826,67159.0,67158.0,0.54959229]
[1729594354643,0.002826,67159.0,67158.0,0.64175154]
[1729594354919,0.04468383,67172.0,67158.0,0.64175154]
[1729594354920,0.04468383,67173.0,67172.0,0.20579431]
[1729594355134,0.000826,67176.0,67175.0,0.12719431]
[1729594355410,0.000826,67176.0,67175.0,0.42979404]
[1729594355637,0.000826,67176.0,67175.0,0.51520807]
[1729594357040,0.001826,67176.0,67175.0,0.52320807]
[1729594357948,0.001826,67176.0,67175.0,0.53420807]
[1729594360988,0.001826,67176.0,67175.0,0.38534407]
[1729594361464,0.001826,67176.0,67175.0,0.53420807]
[1729594363763,0.001826,67176.0,67175.0,0.38534407]
[1729594364657,0.001826,67176.0,67175.0,0.53420807]
[1729594364869,0.001826,67176.0,67175.0,0.38534407]
[1729594366680,0.001826,67176.0,67175.0,0.53420807]
[1729594367325,0.001826,67176.0,67175.0,0.38534407]
[1729594367822,0.001826,67176.0,67175.0,0.53420807]
[1729594368257,0.001826,67176.0,67175.0,0.38534407]
[1729594371824,0.001826,67176.0,67175.0,0.53420807]
[1729594372256,0.001826,67176.0,67175.0,0.38534407]
[1729594372930,0.001826,67176.0,67175.0,0.30674407]
[1729594372931,0.23784725,67176.0,67175.0,0.30674407]
[1729594376252,0.23784725,67176.0,67175.0,0.15778492]
[1729594380314,0.23784725,67176.0,67175.0,0.06358492]
[1729594381402,0.23784725,67176.0,67175.0,0.03081403]
[1729594381636,0.23784725,67176.0,67175.0,0.024]
[1729594383215,0.23784725,67176.0,67175.0,0.0350693]
[1729594385388,0.23784725,67176.0,67175.0,0.024]
[1729594385772,0.23784725,67176.0,67175.0,0.03508932]
[1729594386418,0.23784725,67176.0,67175.0,0.0418208]
[1729594389085,0.23784725,67176.0,67175.0,0.03073148]
[1729594389283,0.23784725,67176.0,67175.0,0.04182247]
[1729594391743,0.23784725,67176.0,67175.0,0.03509099]
[1729594392200,0.150688,67176.0,67175.0,0.03509099]
[1729594392413,0.23784725,67176.0,67175.0,0.03509099]
[1729594392634,0.150688,67176.0,67175.0,0.03509099]
[1729594392847,0.150688,67176.0,67175.0,0.04182181]
[1729594392848,0.23784725,67176.0,67175.0,0.04182181]
[1729594393063,0.23784725,67176.0,67175.0,0.03509099]
[1729594399831,0.23784725,67176.0,67175.0,0.024]
[1729594400037,0.23784725,67176.0,67175.0,0.03509622]
[1729594403997,0.23784725,67176.0,67175.0,0.024]
[1729594404203,0.23784725,67176.0,67175.0,0.03509881]
[1729594404418,0.150688,67176.0,67175.0,0.03509881]
[1729594404700,0.23784725,67176.0,67175.0,0.03509881]
[1729594405355,0.150688,67176.0,67175.0,0.0448697]
[1729594405548,0.001826,67176.0,67175.0,0.0448697]
[1729594405759,0.001826,67176.0,67175.0,0.14959865]
[1729594406422,0.150688,67176.0,67175.0,0.14959865]
[1729594406825,0.150688,67176.0,67175.0,0.05159865]
[1729594407028,0.150688,67176.0,67175.0,0.0448697]
[1729594407485,0.150688,67176.0,67175.0,0.05159851]
[1729594407672,0.150688,67176.0,67175.0,0.05160337]
[1729594409968,0.15046281,67176.0,67175.0,0.05160337]
[1729594411122,0.15046281,67176.0,67175.0,0.05160391]
[1729594415277,0.15046281,67176.0,67175.0,0.0466096]
[1729594415726,0.15046281,67176.0,67175.0,0.05160391]
[1729594417358,0.15046281,67176.0,67175.0,0.14430391]
[1729594418620,0.15046281,67176.0,67175.0,0.14430535]
[1729594419321,0.00160081,67176.0,67175.0,0.14430535]
[1729594419778,0.15046281,67176.0,67175.0,0.22579159]
[1729594420254,0.15046281,67176.0,67175.0,0.24879159]
[1729594420255,0.00160081,67176.0,67175.0,0.24879159]
[1729594420478,0.00160081,67176.0,67175.0,0.3979645]
[1729594420736,0.00160081,67176.0,67175.0,0.5468285]
[1729594420950,0.00160081,67176.0,67175.0,0.59809929]
[1729594422346,0.00160081,67176.0,67175.0,0.59809541]
[1729594422595,0.00160081,67176.0,67175.0,0.55182462]
[1729594425177,0.00160081,67176.0,67175.0,0.6292862]
[1729594426371,0.00160081,67176.0,67175.0,0.55347662]
[1729594426605,0.00160081,67176.0,67175.0,0.54847662]
[1729594427075,0.00160081,67176.0,67175.0,0.55100415]
[1729594427749,0.00160081,67176.0,67175.0,0.5509948]
[1729594428900,0.00160081,67176.0,67175.0,0.70495395]
[1729594429866,0.00160081,67176.0,67175.0,0.70495242]
[1729594432375,0.00160081,67176.0,67175.0,0.68886153]
[1729594432605,0.00160081,67176.0,67175.0,0.69386153]
[1729594435480,0.00160081,67176.0,67175.0,0.54490238]
[1729594437956,0.00160081,67176.0,67175.0,0.59108464]
[1729594438642,0.00160081,67176.0,67175.0,0.54490238]
[1729594439800,0.00160081,67176.0,67175.0,0.53990238]
[1729594440034,0.00160081,67176.0,67175.0,0.54490238]
[1729594441014,0.00160081,67176.0,67175.0,0.5915574]
[1729594441794,0.00160081,67176.0,67175.0,0.54490238]
[1729594451500,0.00160081,67176.0,67175.0,0.59110105]
[1729594454231,0.00160081,67176.0,67175.0,0.58610105]
[1729594454454,0.00160081,67176.0,67175.0,0.59110105]
[1729594461033,0.00160081,67176.0,67175.0,0.60110105]
[1729594461272,0.00160081,67176.0,67175.0,0.7500602]
[1729594461961,0.00060081,67176.0,67175.0,0.7310602]
[1729594462160,0.00060081,67176.0,67175.0,0.58210105]
[1729594462443,0.00160081,67176.0,67175.0,0.59610105]
[1729594462658,0.00060081,67176.0,67175.0,0.58210105]
[1729594462845,0.00160081,67176.0,67175.0,0.61010105]
[1729594464183,0.00160081,67176.0,67175.0,0.59610105]
[1729594464640,0.00160081,67176.0,67175.0,0.61010105]
[1729594465112,0.00160081,67176.0,67175.0,0.61210105]
[1729594465348,0.00160081,67176.0,67175.0,0.84821945]
[1729594466045,0.00160081,67176.0,67175.0,0.892554]
[1729594466712,0.00160081,67176.0,67175.0,0.91478723]
[1729594467195,0.00160081,67176.0,67175.0,0.94821945]
[1729594467424,0.00160081,67176.0,67175.0,1.06128943]
[1729594467648,0.00160081,67176.0,67175.0,0.95045305]
[1729594468575,0.00160081,67176.0,67175.0,0.94821945]
[1729594468810,0.00160081,67176.0,67175.0,1.64821945]
[1729594470165,0.00160081,67176.0,67175.0,1.65045305]
[1729594472079,0.00160081,67176.0,67175.0,1.64821945]
[1729594472282,0.00160081,67176.0,67175.0,1.65045305]
[1729594472719,0.00160081,67176.0,67175.0,1.7376123]
[1729594473148,0.00160081,67176.0,67175.0,1.65045305]
[1729594473579,0.00160081,67176.0,67175.0,1.63645305]
[1729594473813,0.00160081,67176.0,67175.0,1.7376123]
[1729594474045,0.00060081,67176.0,67175.0,1.7236123]
[1729594474279,0.00060081,67176.0,67175.0,1.7096123]
[1729594474510,0.00060081,67176.0,67175.0,1.7236123]
[1729594474990,0.00060081,67176.0,67175.0,1.63645305]
[1729594475416,0.00060081,67176.0,67175.0,1.65045305]
[1729594475608,0.00060081,67176.0,67175.0,1.63645305]
[1729594475814,0.00060081,67176.0,67175.0,1.65045305]
[1729594477081,0.00060081,67176.0,67175.0,1.7376123]
[1729594477296,0.00060081,67176.0,67175.0,1.65045305]
[1729594478182,0.00060081,67176.0,67175.0,1.7376123]
[1729594479212,0.00060081,67176.0,67175.0,1.7236123]
[1729594479854,0.00060081,67176.0,67175.0,1.7096123]
[1729594480070,0.00060081,67176.0,67175.0,1.7236123]
[1729594480916,0.00064588,67198.0,67197.0,0.19158689]
[1729594481186,0.00064588,67198.0,67197.0,0.46026825]
[1729594481403,0.00064588,67198.0,67197.0,0.45729232]
[1729594482287,0.00064588,67198.0,67197.0,0.47129232]
[1729594482534,0.00064588,67198.0,67197.0,0.36184063]
[1729594483198,0.00064588,67198.0,67197.0,0.37584063]
[1729594484703,0.00064588,67198.0,67197.0,0.37084063]
[1729594485378,0.00064588,67198.0,67197.0,0.37307349]
[1729594485806,0.00064588,67198.0,67197.0,0.37084063]
[1729594486007,0.00064588,67198.0,67197.0,0.83444603]
[1729594486247,0.00064588,67198.0,67197.0,0.61874769]
[1729594487061,0.00064588,67198.0,67197.0,0.60474769]
[1729594487568,0.00064588,67198.0,67197.0,0.61874769]
[1729594488003,0.00064588,67198.0,67197.0,0.60474769]
[1729594488214,0.00064588,67198.0,67197.0,0.61874769]
[1729594488649,0.00064588,67198.0,67197.0,0.38584063]
[1729594497163,0.00064588,67198.0,67197.0,0.38784063]
[1729594497393,0.00064588,67198.0,67197.0,0.38584063]
[1729594500683,0.00064588,67198.0,67197.0,0.55884063]
[1729594500921,0.00064588,67198.0,67197.0,0.69213134]
[1729594501169,0.00064588,67198.0,67197.0,0.84109049]
[1729594501643,0.00064588,67198.0,67197.0,0.81309049]
[1729594502102,0.00064588,67198.0,67197.0,0.73993124]
[1729594502354,0.07299353,67212.0,67211.0,0.18655589]
[1729594502588,0.07299353,67212.0,67211.0,0.33551504]
[1729594502817,0.07299353,67212.0,67211.0,0.34278208]
[1729594503272,0.07299353,67212.0,67211.0,0.28779159]
[1729594503709,0.07299353,67212.0,67211.0,0.29979159]
[1729594504141,0.07299353,67212.0,67211.0,0.44857659]
[1729594505180,0.07299353,67212.0,67211.0,0.45857659]
[1729594505404,0.07299353,67212.0,67211.0,0.46965797]
[1729594505599,0.07299353,67212.0,67211.0,0.37586346]
[1729594507844,0.000825,67219.0,67218.0,0.03777089]
[1729594508093,0.000825,67219.0,67218.0,0.34658042]
[1729594508349,0.000825,67219.0,67218.0,0.41873572]
[1729594509462,0.000825,67219.0,67218.0,0.35382338]
[1729594509705,0.000825,67219.0,67218.0,0.36582338]
[1729594509916,0.000825,67219.0,67218.0,0.35382338]
[1729594510139,0.000825,67219.0,67218.0,0.36782338]
[1729594510587,0.000825,67219.0,67218.0,0.21905438]
[1729594510802,0.000825,67219.0,67218.0,0.23305438]
[1729594512141,0.000825,67219.0,67218.0,0.21905438]
[1729594512348,0.000825,67219.0,67218.0,0.23305438]
[1729594512565,0.000825,67219.0,67218.0,0.38179815]
[1729594513870,0.000825,67219.0,67218.0,0.49008777]
[1729594514085,0.000825,67219.0,67218.0,0.23302915]
[1729594516534,0.000825,67219.0,67218.0,0.2330167]
[1729594517220,0.000825,67219.0,67218.0,0.3817857]
[1729594520309,0.000825,67219.0,67218.0,0.49007427]
[1729594531525,0.000825,67219.0,67218.0,0.34130527]
[1729594531757,0.000825,67219.0,67218.0,0.33026157]
[1729594531971,0.000825,67219.0,67218.0,0.34131635]
[1729594532215,0.000825,67219.0,67218.0,0.33026157]
[1729594532429,0.000825,67219.0,67218.0,0.3413164]
[1729594532914,0.000825,67219.0,67218.0,0.23302783]
[1729594535562,0.000825,67219.0,67218.0,0.48167193]
[1729594535763,0.000825,67219.0,67218.0,0.47869683]
[1729594536619,0.000825,67219.0,67218.0,0.46469683]
[1729594536832,0.000825,67219.0,67218.0,0.47869683]
[1729594537046,0.000825,67219.0,67218.0,0.46469683]
[1729594537462,0.000825,67219.0,67218.0,0.47869683]
[1729594537891,0.000825,67219.0,67218.0,0.56365369]
[1729594538103,0.000825,67219.0,67218.0,0.57765369]
[1729594538534,0.000825,67219.0,67218.0,0.58265369]
[1729594538755,0.000825,67219.0,67218.0,0.58765369]
[1729594539308,0.000825,67219.0,67218.0,0.63574237]
[1729594540153,0.000825,67219.0,67218.0,0.62174237]
[1729594540393,0.000825,67219.0,67218.0,0.60774237]
[1729594540603,0.000825,67219.0,67218.0,0.63574237]
[1729594540823,0.000825,67219.0,67218.0,0.62174237]
[1729594541028,0.000825,67219.0,67218.0,0.60774237]
[1729594541241,0.000825,67219.0,67218.0,0.62174237]
[1729594541456,0.000825,67219.0,67218.0,0.63574237]
[1729594541912,0.000825,67219.0,67218.0,0.62174237]
[1729594542110,0.000825,67219.0,67218.0,0.60774237]
[1729594542544,0.000825,67219.0,67218.0,0.79490162]
[1729594542745,0.000825,67219.0,67218.0,0.75189971]
[1729594543225,0.000825,67219.0,67218.0,1.45189971]
[1729594543468,0.000825,67220.0,67219.0,0.03177089]
[1729594543679,0.000825,67220.0,67219.0,0.81984487]
[1729594543892,0.000825,67220.0,67219.0,0.91920878]
[1729594544133,0.000825,67220.0,67219.0,0.92642658]
[1729594544341,0.000825,67220.0,67219.0,1.53811189]
[1729594544550,0.000825,67220.0,67219.0,1.62635487]
[1729594544777,0.000825,67220.0,67219.0,1.53811189]
[1729594545194,0.000825,67220.0,67219.0,1.55211189]
[1729594545453,0.000825,67220.0,67219.0,1.56611189]
[1729594546480,0.000825,67220.0,67219.0,1.63227516]
[1729594546977,0.000825,67220.0,67219.0,1.63226117]
[1729594548583,0.000825,67220.0,67219.0,0.93226117]
[1729594550667,0.000825,67220.0,67219.0,0.94328925]
[1729594550908,0.000825,67220.0,67219.0,0.93225402]
[1729594551348,0.000825,67220.0,67219.0,0.95325]
[1729594551568,0.000825,67220.0,67219.0,1.65325]
[1729594552493,0.000825,67220.0,67219.0,1.56609075]
[1729594552938,0.000825,67220.0,67219.0,1.65325]
[1729594553407,0.000825,67220.0,67219.0,1.63225402]
[1729594553633,0.000825,67220.0,67219.0,1.63390602]
[1729594554080,0.000843,67244.0,67234.0,0.17835723]
[1729594554302,0.000843,67244.0,67237.0,0.39254024]
[1729594554553,0.000843,67244.0,67237.0,0.54149939]
[1729594554764,0.000843,67244.0,67237.0,0.5596814]
[1729594554990,0.000843,67244.0,67237.0,0.70864055]
[1729594555218,0.000843,67244.0,67237.0,1.00947964]
[1729594555440,0.000843,67244.0,67237.0,0.6983813]
[1729594555895,0.000843,67244.0,67237.0,0.74423788]
[1729594556330,0.000843,67244.0,67237.0,0.6983813]
[1729594557189,0.000843,67244.0,67237.0,0.7123813]
[1729594557827,0.000843,67244.0,67237.0,0.7263813]
[1729594558029,0.000843,67244.0,67237.0,0.7123813]
[1729594558528,0.000843,67244.0,67237.0,1.5123813]
[1729594559399,0.000843,67244.0,67237.0,1.5263813]
[1729594560296,0.000843,67244.0,67237.0,0.8263813]
[1729594561568,0.000843,67244.0,67237.0,0.81536838]
[1729594561781,0.000843,67244.0,67237.0,0.81313762]
[1729594562421,0.000843,67244.0,67237.0,0.82413991]
[1729594562652,0.000843,67244.0,67237.0,0.82414136]
[1729594563089,0.000843,67244.0,67243.0,0.40003723]
[1729594563355,0.000843,67244.0,67243.0,0.85309469]
[1729594563600,0.000843,67244.0,67243.0,0.86025082]
[1729594564293,0.000843,67244.0,67243.0,0.87425082]
[1729594564514,0.000843,67244.0,67243.0,0.88825082]
[1729594564736,0.000843,67244.0,67243.0,1.58825082]
[1729594564952,0.000843,67244.0,67243.0,1.57425082]
[1729594565409,0.000843,67244.0,67243.0,1.57286411]
[1729594565852,0.000843,67244.0,67243.0,1.58386514]
[1729594566116,0.000843,67244.0,67243.0,1.5728614]
[1729594566521,0.0001069,67261.0,67243.0,1.5728614]
[1729594566522,0.04839373,67250.0,67249.0,0.37625602]
[1729594566742,0.04839373,67250.0,67249.0,0.74842934]
[1729594566951,0.04839373,67250.0,67249.0,0.75556186]
[1729594567852,0.04839373,67250.0,67249.0,0.76956186]
[1729594568058,0.04839373,67250.0,67249.0,0.78356186]
[1729594568728,0.04839373,67250.0,67249.0,0.78256186]
[1729594569150,0.04839373,67250.0,67249.0,1.48256186]
[1729594569353,0.04839373,67250.0,67249.0,1.45756083]
[1729594569565,0.04839373,67250.0,67249.0,1.48479296]
[1729594570456,0.04839373,67250.0,67249.0,1.48256227]
[1729594570664,0.04839373,67250.0,67249.0,0.78256227]
[1729594571152,0.04839373,67250.0,67249.0,0.78479311]
[1729594571926,0.04839373,67250.0,67249.0,0.78256227]
[1729594572353,0.04839373,67250.0,67249.0,0.78356227]
[1729594572787,0.04839373,67250.0,67249.0,0.70176227]
[1729594572998,0.04839373,67250.0,67249.0,1.40176227]
[1729594574395,0.04839373,67250.0,67249.0,0.48753063]
[1729594574620,0.04839373,67250.0,67249.0,0.37303063]
[1729594575326,0.28425098,67250.0,67249.0,0.20932963]
[1729594575568,0.04839373,67250.0,67249.0,0.19832819]
[1729594575996,0.04839373,67250.0,67249.0,0.18432819]
[1729594576945,0.04839373,67250.0,67249.0,0.20732819]
[1729594577396,0.04921873,67250.0,67249.0,0.21833943]
[1729594577649,0.04921873,67250.0,67249.0,0.22132819]
[1729594578120,0.04921873,67250.0,67249.0,0.23233943]
[1729594578336,0.04921873,67250.0,67249.0,0.22132819]
[1729594578807,0.04921873,67250.0,67249.0,0.23233943]
[1729594579032,0.04921873,67250.0,67249.0,0.22132819]
[1729594579487,0.04921873,67250.0,67249.0,0.23233943]
[1729594579699,0.04921873,67250.0,67249.0,0.22132819]
[1729594580381,0.04921873,67250.0,67249.0,0.2323453]
[1729594581038,0.04921873,67250.0,67249.0,0.22132819]
[1729594581470,0.04921873,67250.0,67249.0,0.2323453]
[1729594583439,0.19791673,67250.0,67249.0,0.2323453]
[1729594583951,0.04921873,67250.0,67249.0,0.2323453]
[1729594584179,0.19791673,67250.0,67249.0,0.2525934]
[1729594584406,0.19791673,67250.0,67249.0,0.24157629]
[1729594584646,0.19791673,67250.0,67249.0,0.2295934]
[1729594584891,0.19791673,67250.0,67249.0,0.19832819]
[1729594585114,0.19791673,67250.0,67249.0,0.2093453]
[1729594585358,0.04921873,67250.0,67249.0,0.2093453]
[1729594586062,0.04921873,67250.0,67249.0,0.2323453]
[1729594587424,0.04921873,67250.0,67249.0,0.22132819]
[1729594588781,0.04921873,67250.0,67249.0,0.22297819]
[1729594589268,0.04921873,67250.0,67249.0,0.25505841]
[1729594596295,0.04921873,67250.0,67249.0,0.22297819]
[1729594598811,0.19791673,67250.0,67249.0,0.22297819]
[1729594599285,0.04921873,67250.0,67249.0,0.22297819]
[1729594602791,0.04903976,67250.0,67249.0,0.22297819]
[1729594606106,0.04903976,67250.0,67249.0,0.31597819]
[1729594606938,0.04903976,67250.0,67249.0,0.28797819]
[1729594607158,0.04903976,67250.0,67249.0,0.30197819]
[1729594607356,0.04903976,67250.0,67249.0,0.31597819]
[1729594610302,0.04903976,67250.0,67249.0,0.36202626]
[1729594610519,0.04903976,67250.0,67249.0,0.38374473]
[1729594610971,0.04903976,67250.0,67249.0,0.42979324]
[1729594612754,0.04903976,67250.0,67249.0,0.38374473]
[1729594613739,0.04903976,67250.0,67249.0,0.42979269]
[1729594614187,0.04903976,67250.0,67249.0,0.26902615]
[1729594617378,0.04903976,67250.0,67249.0,0.22297819]
[1729594617581,0.19773776,67250.0,67249.0,0.22297819]
[1729594618009,0.04903976,67250.0,67249.0,0.22297819]
[1729594618447,0.19773776,67250.0,67249.0,0.19997819]
[1729594621077,0.04903976,67250.0,67249.0,0.19997819]
[1729594621549,0.19773776,67250.0,67249.0,0.19997819]
[1729594622213,0.19773776,67250.0,67249.0,0.19284567]
[1729594622717,0.46589701,67250.0,67249.0,0.03442658]
[1729594622951,0.71995936,67250.0,67249.0,0.04568987]
[1729594623179,0.53283827,67250.0,67249.0,0.03442658]
[1729594623421,0.63273662,67250.0,67249.0,0.02042658]
[1729594623960,0.80705512,67250.0,67249.0,0.04388652]
[1729594624199,0.61998051,67250.0,67249.0,0.04388652]
[1729594624438,0.44566201,67250.0,67249.0,0.04388652]
[1729594624654,0.53282126,67250.0,67249.0,0.03442658]
[1729594624880,0.53282126,67250.0,67249.0,0.04388652]
[1729594625103,0.53282126,67250.0,67249.0,0.02988652]
[1729594625326,0.46589701,67250.0,67249.0,0.02988652]
[1729594625552,0.46589701,67250.0,67249.0,0.02188652]
[1729594625782,0.46589701,67250.0,67249.0,0.02488652]
[1729594626008,0.46589701,67250.0,67249.0,0.02988652]
[1729594626238,0.46589701,67250.0,67249.0,0.01142658]
[1729594626472,0.46589701,67250.0,67249.0,0.02088652]
[1729594626703,0.46589701,67250.0,67249.0,0.02888652]
[1729594627151,0.51049601,67250.0,67249.0,0.02888652]
[1729594627376,0.46589701,67250.0,67249.0,0.02888652]
[1729594627603,0.46589701,67250.0,67249.0,0.01942658]
[1729594627858,0.46589701,67250.0,67249.0,0.02888652]
[1729594628079,0.19873776,67250.0,67249.0,0.02888652]
[1729594628298,0.28589701,67250.0,67249.0,0.02888652]
[1729594628961,0.28589701,67250.0,67249.0,0.01942658]
[1729594629176,0.28589701,67250.0,67249.0,0.02888652]
[1729594633061,0.28489701,67250.0,67249.0,0.02888652]
[1729594633901,0.28589701,67250.0,67249.0,0.02888652]
[1729594637585,0.28589701,67250.0,67249.0,0.02410994]
[1729594637817,0.37305626,67250.0,67249.0,0.01965]
[1729594638039,0.37513776,67250.0,67249.0,0.01965]
[1729594638267,0.54945626,67250.0,67249.0,0.01965]
[1729594638499,0.46229701,67250.0,67249.0,0.01965]
[1729594638721,0.54945626,67250.0,67249.0,0.01965]
[1729594638957,0.46229701,67250.0,67249.0,0.01965]
[1729594639195,0.54945626,67250.0,67249.0,0.01965]
[1729594639426,0.54945626,67250.0,67249.0,0.01465]
[1729594639427,0.46229701,67250.0,67249.0,0.01465]
[1729594639652,0.46229701,67250.0,67249.0,0.01965]
[1729594639866,0.36259701,67250.0,67249.0,0.01965]
[1729594640334,0.28589701,67250.0,67249.0,0.01942658]
[1729594640549,0.28589701,67250.0,67249.0,0.02888652]
[1729594642641,0.28489701,67250.0,67249.0,0.02888652]
[1729594642870,0.28589701,67250.0,67249.0,0.01942658]
[1729594643094,0.28589701,67250.0,67249.0,0.02888652]
[1729594644160,0.28489701,67250.0,67249.0,0.02888652]
[1729594644797,0.28589701,67250.0,67249.0,0.03796805]
[1729594645016,0.28589701,67250.0,67249.0,0.02888652]
[1729594645671,0.28489701,67250.0,67249.0,0.02888652]
[1729594647457,0.28489701,67250.0,67249.0,0.03796805]
[1729594649167,0.28489701,67250.0,67249.0,0.049005]
[1729594649379,0.28489701,67250.0,67249.0,0.03796805]
[1729594649587,0.28489701,67250.0,67249.0,0.049005]
[1729594649808,0.28489701,67250.0,67249.0,0.03796805]
[1729594650035,0.28589701,67250.0,67249.0,0.049005]
[1729594650247,0.28589701,67250.0,67249.0,0.03350811]
[1729594650459,0.28589701,67250.0,67249.0,0.04454506]
[1729594650922,0.64285626,67250.0,67249.0,0.02373153]
[1729594651147,0.68741396,67250.0,67249.0,0.02373153]
[1729594651377,0.64285626,67250.0,67249.0,0.01465]
[1729594651608,0.8997361,67250.0,67249.0,0.01465]
[1729594651832,0.8997361,67250.0,67238.0,0.01103695]
[1729594651833,0.149723,67239.0,67238.0,0.01103695]
[1729594652059,0.149725,67238.0,67237.0,0.01270132]
[1729594652268,0.149725,67238.0,67237.0,0.00165]
[1729594652476,0.149725,67238.0,67237.0,0.01270132]
[1729594652904,0.149725,67238.0,67237.0,0.00165]
[1729594654583,0.149725,67238.0,67237.0,0.00465]
[1729594655042,0.149725,67238.0,67237.0,0.00965]
[1729594655947,0.148725,67238.0,67237.0,0.00965]
[1729594657516,0.149725,67238.0,67237.0,0.01442658]
[1729594658479,0.148725,67238.0,67237.0,0.01442658]
[1729594659556,0.149725,67238.0,67237.0,0.01442658]
[1729594661814,0.148725,67238.0,67237.0,0.01442658]
[1729594665425,0.23588425,67238.0,67237.0,0.01442658]
[1729594666762,0.23688425,67238.0,67237.0,0.01442658]
[1729594667677,0.23588425,67238.0,67237.0,0.01442658]
[1729594668971,0.23688425,67238.0,67237.0,0.01442658]
[1729594671098,0.148725,67238.0,67237.0,0.16338573]
[1729594671354,0.546149,67242.0,67241.0,0.00477658]
[1729594671557,0.1,67242.0,67241.0,0.33449567]
[1729594671789,0.248716,67242.0,67241.0,0.34360352]
[1729594672002,0.1,67242.0,67241.0,0.3546401]
[1729594672211,0.1,67242.0,67241.0,0.34360352]
[1729594672427,0.1,67242.0,67241.0,0.35463641]
[1729594672644,0.101,67242.0,67241.0,0.44466923]
[1729594672865,0.101,67242.0,67241.0,0.45566923]
[1729594673069,0.101,67242.0,67241.0,0.44466923]
[1729594673485,0.101,67242.0,67241.0,0.45866923]
[1729594673713,0.101,67242.0,67241.0,0.44466923]
[1729594673954,0.101,67242.0,67241.0,0.45866923]
[1729594674181,0.249716,67242.0,67241.0,0.38063641]
[1729594674389,0.248716,67242.0,67241.0,0.36863641]
[1729594674612,0.248716,67242.0,67241.0,0.38263641]
[1729594675053,0.248716,67242.0,67241.0,0.36863641]
[1729594675520,0.248716,67242.0,67241.0,0.38263641]
[1729594675948,0.1,67242.0,67241.0,0.38263641]
[1729594676165,0.248716,67242.0,67241.0,0.38263641]
[1729594677233,0.33587525,67242.0,67241.0,0.29242856]
[1729594677459,0.33687525,67242.0,67241.0,0.30305652]
[1729594677668,0.33587525,67242.0,67241.0,0.30305652]
[1729594678603,0.33587525,67242.0,67241.0,0.21285652]
[1729594678767,0.33687525,67242.0,67241.0,0.21285652]
[1729594682435,0.33687525,67242.0,67241.0,0.20182363]
[1729594682643,0.33687525,67242.0,67241.0,0.21287059]
[1729594682863,0.33687525,67242.0,67241.0,0.20363407]
[1729594683298,0.33687525,67242.0,67241.0,0.21287059]
[1729594683927,0.33687525,67242.0,67241.0,0.06391144]
[1729594684208,0.33687525,67242.0,67241.0,0.05286448]
[1729594684417,0.33687525,67242.0,67241.0,0.04223652]
[1729594694715,0.33687525,67242.0,67241.0,0.05328698]
[1729594694933,0.33687525,67242.0,67241.0,0.04223652]
[1729594695607,0.33687525,67242.0,67241.0,0.05328698]
[1729594696046,0.33687525,67242.0,67241.0,0.04223652]
[1729594696483,0.33687525,67242.0,67241.0,0.04828698]
[1729594696711,0.33687525,67242.0,67241.0,0.04223652]
[1729594698359,0.33687525,67242.0,67241.0,0.05328698]
[1729594698571,0.33687525,67242.0,67241.0,0.04223652]
[1729594698786,0.33687525,67242.0,67241.0,0.05328698]
[1729594698999,0.33687525,67242.0,67241.0,0.04223652]
[1729594699466,0.33687525,67242.0,67241.0,0.05328698]
[1729594699647,0.33687525,67242.0,67241.0,0.04223652]
[1729594699867,0.33687525,67242.0,67241.0,0.05328698]
[1729594700088,0.33687525,67242.0,67241.0,0.04223652]
[1729594700311,0.33687525,67242.0,67241.0,0.05328698]
[1729594700533,0.33687525,67242.0,67241.0,0.04223652]
[1729594700742,0.33687525,67242.0,67241.0,0.05328698]
[1729594700968,0.33687525,67242.0,67241.0,0.04223652]